[Event "Late-Titled-Tuesday-Blitz-November-28-2023"]
[Site "Chess.com"]
[Date "2023.11.28"]
[Round "4"]
[White "Yurasova_Daria"]
[Black "mbojan"]
[Result "1/2-1/2"]
[WhiteElo "2484"]
[BlackElo "2851"]
[TimeControl "180+1"]
[EndTime "14:38:30 PST"]
[Termination "Game drawn - insufficient material"]

1. d4 {[%clk 0:03:00.9]} 1... Nf6 {[%clk 0:02:59.9]} 2. Bg5 {[%clk 0:02:59.4]}
2... g6 {[%clk 0:02:59.3]} 3. Bxf6 {[%clk 0:02:58.8]} 3... exf6 {[%clk
0:03:00.2]} 4. e3 {[%clk 0:02:58.2]} 4... d5 {[%clk 0:03:00.7]} 5. g3 {[%clk
0:02:56.4]} 5... Bd6 {[%clk 0:03:01.1]} 6. Bg2 {[%clk 0:02:56.4]} 6... c6 {[%clk
0:03:01.7]} 7. Nd2 {[%clk 0:02:56.6]} 7... h5 {[%clk 0:03:02.2]} 8. Ne2 {[%clk
0:02:57.2]} 8... h4 {[%clk 0:03:02.3]} 9. c4 {[%clk 0:02:57.3]} 9... dxc4 {[%clk
0:03:00.5]} 10. Nxc4 {[%clk 0:02:56.3]} 10... Bc7 {[%clk 0:03:00.7]} 11. b4
{[%clk 0:02:48.3]} 11... Nd7 {[%clk 0:02:56.3]} 12. a4 {[%clk 0:02:47.1]} 12...
Nb6 {[%clk 0:02:51.1]} 13. Nxb6 {[%clk 0:02:45.9]} 13... axb6 {[%clk 0:02:52]}
14. Qb3 {[%clk 0:02:38.2]} 14... Be6 {[%clk 0:02:51.2]} 15. Qc3 {[%clk
0:02:38.2]} 15... b5 {[%clk 0:02:49.5]} 16. a5 {[%clk 0:02:35.4]} 16... Ra6
{[%clk 0:02:49.8]} 17. Nc1 {[%clk 0:02:22.9]} 17... Bd5 {[%clk 0:02:39.6]} 18.
e4 {[%clk 0:02:17.9]} 18... Bc4 {[%clk 0:02:39.9]} 19. Nd3 {[%clk 0:02:13.1]}
19... Bxd3 {[%clk 0:02:39.6]} 20. Qxd3 {[%clk 0:02:13.2]} 20... Qe7 {[%clk
0:02:38.9]} 21. Rb1 {[%clk 0:02:07.1]} 21... Bd6 {[%clk 0:02:33.8]} 22. O-O
{[%clk 0:01:49.6]} 22... Kf8 {[%clk 0:02:30.9]} 23. Qc3 {[%clk 0:01:42.2]} 23...
hxg3 {[%clk 0:02:27.1]} 24. hxg3 {[%clk 0:01:38.8]} 24... Kg8 {[%clk 0:02:24.8]}
25. Rfe1 {[%clk 0:01:38.6]} 25... Rh5 {[%clk 0:02:24]} 26. f4 {[%clk 0:01:19.2]}
26... Ra8 {[%clk 0:02:14.8]} 27. e5 {[%clk 0:01:17.4]} 27... fxe5 {[%clk
0:02:15.1]} 28. dxe5 {[%clk 0:01:18.3]} 28... Bb8 {[%clk 0:02:15.4]} 29. Bf3
{[%clk 0:00:54.4]} 29... Rh8 {[%clk 0:01:45.9]} 30. Kg2 {[%clk 0:00:54]} 30...
Ba7 {[%clk 0:01:45.9]} 31. Rh1 {[%clk 0:00:53.1]} 31... Rd8 {[%clk 0:01:41]} 32.
Rxh8+ {[%clk 0:00:36.1]} 32... Kxh8 {[%clk 0:01:41.9]} 33. Rh1+ {[%clk
0:00:36.6]} 33... Kg7 {[%clk 0:01:41.2]} 34. Rd1 {[%clk 0:00:22.8]} 34... Kg8
{[%clk 0:01:15]} 35. Rxd8+ {[%clk 0:00:17.4]} 35... Qxd8 {[%clk 0:01:15.9]} 36.
a6 {[%clk 0:00:18.1]} 36... bxa6 {[%clk 0:01:14.3]} 37. Bxc6 {[%clk 0:00:14.7]}
37... Qd1 {[%clk 0:01:14.2]} 38. Kh3 {[%clk 0:00:08]} 38... Bd4 {[%clk
0:01:04.9]} 39. Qf3 {[%clk 0:00:07.3]} 39... Qb1 {[%clk 0:00:49.7]} 40. e6
{[%clk 0:00:07.5]} 40... fxe6 {[%clk 0:00:38.5]} 41. Qe4 {[%clk 0:00:07.8]}
41... Qf1+ {[%clk 0:00:33.8]} 42. Qg2 {[%clk 0:00:07.6]} 42... Qc4 {[%clk
0:00:20.7]} 43. Qe4 {[%clk 0:00:07.2]} 43... Kf7 {[%clk 0:00:20.3]} 44. Bb7
{[%clk 0:00:05.4]} 44... Qf1+ {[%clk 0:00:18.3]} 45. Qg2 {[%clk 0:00:05.2]}
45... Qc4 {[%clk 0:00:11.9]} 46. Qe4 {[%clk 0:00:05.4]} 46... Bf6 {[%clk
0:00:02.9]} 47. Qxc4 {[%clk 0:00:04.8]} 47... bxc4 {[%clk 0:00:03.8]} 48. Bxa6
{[%clk 0:00:05.2]} 48... c3 {[%clk 0:00:04.5]} 49. Bd3 {[%clk 0:00:06]} 49...
Be7 {[%clk 0:00:04.6]} 50. b5 {[%clk 0:00:05.5]} 50... Bc5 {[%clk 0:00:05.4]}
51. Kg2 {[%clk 0:00:06]} 51... Kf6 {[%clk 0:00:06.2]} 52. Kf3 {[%clk 0:00:06.5]}
52... g5 {[%clk 0:00:05.4]} 53. fxg5+ {[%clk 0:00:06.1]} 53... Kxg5 {[%clk
0:00:06.3]} 54. Ke4 {[%clk 0:00:06.4]} 54... Kf6 {[%clk 0:00:06.7]} 55. g4
{[%clk 0:00:06.7]} 55... Bb6 {[%clk 0:00:07.3]} 56. Kf4 {[%clk 0:00:06.3]} 56...
Bc7+ {[%clk 0:00:05.9]} 57. Ke4 {[%clk 0:00:06.7]} 57... Kg5 {[%clk 0:00:06.4]}
58. Kf3 {[%clk 0:00:06.4]} 58... Bb6 {[%clk 0:00:05.6]} 59. Bc2 {[%clk
0:00:06.3]} 59... Bd4 {[%clk 0:00:05.3]} 60. Ke4 {[%clk 0:00:06.6]} 60... Bb6
{[%clk 0:00:04.9]} 61. Ke5 {[%clk 0:00:07.2]} 61... Kxg4 {[%clk 0:00:05.2]} 62.
Kxe6 {[%clk 0:00:08]} 62... Kf4 {[%clk 0:00:05.9]} 63. Kd6 {[%clk 0:00:08.6]}
63... Ke3 {[%clk 0:00:06.6]} 64. Kc6 {[%clk 0:00:08.6]} 64... Kd2 {[%clk
0:00:07.5]} 65. Ba4 {[%clk 0:00:08.6]} 65... Ba5 {[%clk 0:00:07.5]} 66. b6
{[%clk 0:00:06.7]} 66... Bxb6 {[%clk 0:00:08]} 67. Kxb6 {[%clk 0:00:07.6]} 67...
Kc1 {[%clk 0:00:08.4]} 68. Kc5 {[%clk 0:00:07.5]} 68... Kb2 {[%clk 0:00:08.3]}
69. Kd4 {[%clk 0:00:07.6]} 69... c2 {[%clk 0:00:09.2]} 70. Bxc2 {[%clk
0:00:07.4]} 1/2-1/2

[Event "Late-Titled-Tuesday-Blitz-November-28-2023"]
[Site "Chess.com"]
[Date "2023.11.28"]
[Round "4"]
[White "BigAl"]
[Black "YQPerez"]
[Result "1-0"]
[WhiteElo "2558"]
[BlackElo "2824"]
[TimeControl "180+1"]
[EndTime "14:38:32 PST"]
[Termination "BigAl won on time"]

1. Nf3 {[%clk 0:03:00.1]} 1... Nf6 {[%clk 0:02:59.3]} 2. g3 {[%clk 0:03:00.6]}
2... d5 {[%clk 0:02:57.6]} 3. Bg2 {[%clk 0:03:01.5]} 3... Bf5 {[%clk 0:02:58]}
4. O-O {[%clk 0:03:01.7]} 4... e6 {[%clk 0:02:58.5]} 5. d3 {[%clk 0:03:02.6]}
5... h6 {[%clk 0:02:58]} 6. c4 {[%clk 0:03:03.1]} 6... c6 {[%clk 0:02:58]} 7.
Be3 {[%clk 0:03:03.3]} 7... Be7 {[%clk 0:02:52.4]} 8. Qb3 {[%clk 0:03:03]} 8...
Qc8 {[%clk 0:02:53.1]} 9. Nc3 {[%clk 0:03:01.6]} 9... O-O {[%clk 0:02:52.6]} 10.
Rac1 {[%clk 0:03:00.5]} 10... Bh7 {[%clk 0:02:49.2]} 11. cxd5 {[%clk 0:02:38.3]}
11... exd5 {[%clk 0:02:49]} 12. Ne5 {[%clk 0:02:16.7]} 12... Nbd7 {[%clk
0:02:44.3]} 13. d4 {[%clk 0:02:16.5]} 13... Nxe5 {[%clk 0:02:35.3]} 14. dxe5
{[%clk 0:02:16.7]} 14... Ng4 {[%clk 0:02:26]} 15. Nxd5 {[%clk 0:02:10.5]} 15...
Bd8 {[%clk 0:02:25.9]} 16. Bd4 {[%clk 0:01:45.4]} 16... Qf5 {[%clk 0:02:16.9]}
17. e4 {[%clk 0:01:27.4]} 17... Qh5 {[%clk 0:02:16.8]} 18. h3 {[%clk 0:01:27.7]}
18... Nxe5 {[%clk 0:02:16.2]} 19. g4 {[%clk 0:01:11.7]} 19... Qg5 {[%clk
0:01:38.8]} 20. f4 {[%clk 0:01:10.3]} 20... Qh4 {[%clk 0:01:37.5]} 21. Bf2
{[%clk 0:00:58.7]} 21... Qxf2+ {[%clk 0:01:17.7]} 22. Kxf2 {[%clk 0:00:43]}
22... Ng6 {[%clk 0:01:16.8]} 23. Ne3 {[%clk 0:00:29.2]} 23... Nxf4 {[%clk
0:01:16.9]} 24. Kg1 {[%clk 0:00:24.6]} 24... Ne6 {[%clk 0:01:09.9]} 25. Nf5
{[%clk 0:00:19.9]} 25... Bb6+ {[%clk 0:01:07.9]} 26. Kh1 {[%clk 0:00:20.1]}
26... Rfd8 {[%clk 0:01:07.7]} 27. Rcd1 {[%clk 0:00:20.4]} 27... Bxf5 {[%clk
0:01:00]} 28. exf5 {[%clk 0:00:20.8]} 28... Nd4 {[%clk 0:00:59.5]} 29. Qg3
{[%clk 0:00:17.4]} 29... Ne2 {[%clk 0:00:58.7]} 30. Qf3 {[%clk 0:00:17.7]} 30...
Re8 {[%clk 0:00:57.9]} 31. Rde1 {[%clk 0:00:17.3]} 31... Nd4 {[%clk 0:00:57]}
32. Qf4 {[%clk 0:00:16.5]} 32... f6 {[%clk 0:00:55.7]} 33. Re4 {[%clk
0:00:14.2]} 33... Ne2 {[%clk 0:00:54.4]} 34. Qf3 {[%clk 0:00:14.3]} 34... Rxe4
{[%clk 0:00:53.5]} 35. Qxe4 {[%clk 0:00:10.7]} 35... Ng3+ {[%clk 0:00:53.7]} 36.
Kh2 {[%clk 0:00:10.6]} 36... Nxe4 {[%clk 0:00:54.1]} 37. Bxe4 {[%clk 0:00:11.5]}
37... Rd8 {[%clk 0:00:52.2]} 38. Kg3 {[%clk 0:00:09.8]} 38... Rd2 {[%clk
0:00:51.9]} 39. b3 {[%clk 0:00:07.5]} 39... a5 {[%clk 0:00:50]} 40. a4 {[%clk
0:00:07]} 40... Bd4 {[%clk 0:00:47.9]} 41. Rf3 {[%clk 0:00:07.4]} 41... Be5+
{[%clk 0:00:47.5]} 42. Kh4 {[%clk 0:00:08.1]} 42... Kf7 {[%clk 0:00:42.2]} 43.
Bd3 {[%clk 0:00:08.4]} 43... Ke7 {[%clk 0:00:39.7]} 44. Kh5 {[%clk 0:00:08.2]}
44... Kf8 {[%clk 0:00:22.1]} 45. Kg6 {[%clk 0:00:08.4]} 45... b6 {[%clk
0:00:21.4]} 46. Bc4 {[%clk 0:00:08.7]} 46... Rd4 {[%clk 0:00:19.4]} 47. Be6
{[%clk 0:00:08.1]} 47... b5 {[%clk 0:00:19.3]} 48. axb5 {[%clk 0:00:08.1]} 48...
cxb5 {[%clk 0:00:20.2]} 49. Rc3 {[%clk 0:00:07.8]} 49... a4 {[%clk 0:00:19.8]}
50. Rc8+ {[%clk 0:00:07.7]} 50... Ke7 {[%clk 0:00:20]} 51. bxa4 {[%clk
0:00:08.1]} 51... bxa4 {[%clk 0:00:19.8]} 52. Ra8 {[%clk 0:00:07.8]} 52... Rf4
{[%clk 0:00:15.5]} 53. Kxg7 {[%clk 0:00:08.2]} 53... Bb2 {[%clk 0:00:16]} 54.
Ra7+ {[%clk 0:00:07.1]} 54... Kd6 {[%clk 0:00:16.5]} 55. Kxh6 {[%clk 0:00:07.7]}
55... a3 {[%clk 0:00:16.4]} 56. Kg6 {[%clk 0:00:07.5]} 56... Re4 {[%clk
0:00:14.8]} 57. Kh5 {[%clk 0:00:07.5]} 57... Kc6 {[%clk 0:00:11.6]} 58. h4
{[%clk 0:00:07.7]} 58... Kb6 {[%clk 0:00:12.3]} 59. Ra8 {[%clk 0:00:07.8]} 59...
Kb7 {[%clk 0:00:12.3]} 60. Ra5 {[%clk 0:00:07.8]} 60... Kb6 {[%clk 0:00:12.6]}
61. Ra8 {[%clk 0:00:07.5]} 61... Kb5 {[%clk 0:00:09.3]} 62. Rb8+ {[%clk
0:00:07.6]} 62... Kc5 {[%clk 0:00:09.2]} 63. g5 {[%clk 0:00:08.2]} 63... fxg5
{[%clk 0:00:07.3]} 64. hxg5 {[%clk 0:00:09.1]} 64... Rxe6 {[%clk 0:00:04.2]} 65.
fxe6 {[%clk 0:00:09.5]} 65... a2 {[%clk 0:00:04.2]} 66. Ra8 {[%clk 0:00:09.2]}
66... a1=Q {[%clk 0:00:02.1]} 67. Rxa1 {[%clk 0:00:08.9]} 67... Bxa1 {[%clk
0:00:03]} 68. Kg6 {[%clk 0:00:09.6]} 68... Kd6 {[%clk 0:00:01.3]} 69. Kf7 {[%clk
0:00:10.5]} 1-0

[Event "Late-Titled-Tuesday-Blitz-November-28-2023"]
[Site "Chess.com"]
[Date "2023.11.28"]
[Round "4"]
[White "GMthekingindian"]
[Black "venturov"]
[Result "1-0"]
[WhiteElo "2334"]
[BlackElo "2481"]
[TimeControl "180+1"]
[EndTime "14:38:37 PST"]
[Termination "GMthekingindian won by checkmate"]

1. e4 {[%clk 0:03:00.9]} 1... Nf6 {[%clk 0:02:59.5]} 2. Nc3 {[%clk 0:02:59.7]}
2... d5 {[%clk 0:02:55]} 3. e5 {[%clk 0:02:59]} 3... Nfd7 {[%clk 0:02:54.6]} 4.
d4 {[%clk 0:02:59.6]} 4... c5 {[%clk 0:02:54.2]} 5. dxc5 {[%clk 0:02:57.5]} 5...
e6 {[%clk 0:02:53.6]} 6. Nf3 {[%clk 0:02:56.3]} 6... Nc6 {[%clk 0:02:53.7]} 7.
Bf4 {[%clk 0:02:56.1]} 7... Bxc5 {[%clk 0:02:52.8]} 8. Bd3 {[%clk 0:02:56.2]}
8... Qb6 {[%clk 0:02:52.1]} 9. O-O {[%clk 0:02:55.1]} 9... Qxb2 {[%clk
0:02:52.1]} 10. Nb5 {[%clk 0:02:55.1]} 10... Qb4 {[%clk 0:02:19.2]} 11. Bd2
{[%clk 0:02:46.8]} 11... Qa4 {[%clk 0:02:03.3]} 12. Nc7+ {[%clk 0:02:41.8]}
12... Kd8 {[%clk 0:02:03.5]} 13. Bb5 {[%clk 0:02:17.3]} 13... Qa3 {[%clk
0:01:34.9]} 14. Nxa8 {[%clk 0:02:16]} 14... Ncxe5 {[%clk 0:01:26.5]} 15. Nxe5
{[%clk 0:02:03.2]} 15... Nxe5 {[%clk 0:01:26.6]} 16. Qc1 {[%clk 0:01:50.4]}
16... Bd7 {[%clk 0:01:12.5]} 17. Qxa3 {[%clk 0:01:26.9]} 17... Bxa3 {[%clk
0:01:12.1]} 18. Ba5+ {[%clk 0:01:21.8]} 18... Ke7 {[%clk 0:01:06.2]} 19. Bxd7
{[%clk 0:01:18.5]} 19... Kxd7 {[%clk 0:01:00.9]} 20. Nc7 {[%clk 0:01:10.9]}
20... a6 {[%clk 0:00:34.4]} 21. Rab1 {[%clk 0:00:59.5]} 21... Kc6 {[%clk
0:00:34.3]} 22. Rb6+ {[%clk 0:00:51.3]} 22... Kxc7 {[%clk 0:00:23.8]} 23. Rxe6+
{[%clk 0:00:31.3]} 23... b6 {[%clk 0:00:24]} 24. Bxb6+ {[%clk 0:00:29.3]} 24...
Kb7 {[%clk 0:00:23.1]} 25. Rxe5 {[%clk 0:00:28.1]} 25... Kxb6 {[%clk 0:00:23.6]}
26. Rxd5 {[%clk 0:00:25.5]} 26... Rc8 {[%clk 0:00:23.8]} 27. Rb1+ {[%clk
0:00:22.2]} 27... Kc6 {[%clk 0:00:20.6]} 28. Rd3 {[%clk 0:00:21.8]} 28... Bc5
{[%clk 0:00:19.3]} 29. Kf1 {[%clk 0:00:18.6]} 29... Re8 {[%clk 0:00:16.9]} 30.
Rc3 {[%clk 0:00:16.6]} 30... Re4 {[%clk 0:00:14.9]} 31. Re1 {[%clk 0:00:12.7]}
31... Rb4 {[%clk 0:00:07.2]} 32. Re8 {[%clk 0:00:11.8]} 32... Kd6 {[%clk
0:00:05.4]} 33. Rd8+ {[%clk 0:00:10.7]} 33... Ke7 {[%clk 0:00:05.3]} 34. Ra8
{[%clk 0:00:09.3]} 34... Bd4 {[%clk 0:00:04.2]} 35. Rb3 {[%clk 0:00:08]} 35...
Rc4 {[%clk 0:00:03.9]} 36. Rxa6 {[%clk 0:00:06.6]} 36... Rxc2 {[%clk 0:00:03.9]}
37. Rb7+ {[%clk 0:00:07.2]} 37... Kd8 {[%clk 0:00:02.1]} 38. Ra8+ {[%clk
0:00:07.2]} 38... Rc8 {[%clk 0:00:02.3]} 39. Rxc8+ {[%clk 0:00:07.8]} 39... Kxc8
{[%clk 0:00:03.2]} 40. Rxf7 {[%clk 0:00:07.9]} 40... h6 {[%clk 0:00:04]} 41. f3
{[%clk 0:00:08.4]} 41... Kd8 {[%clk 0:00:04.1]} 42. Ke2 {[%clk 0:00:09]} 42...
Bf6 {[%clk 0:00:04.1]} 43. Rb7 {[%clk 0:00:09.5]} 43... Kc8 {[%clk 0:00:04.4]}
44. Ra7 {[%clk 0:00:09.9]} 44... Kb8 {[%clk 0:00:05]} 45. Rf7 {[%clk 0:00:10.5]}
45... Kc8 {[%clk 0:00:05.2]} 46. Kd3 {[%clk 0:00:11.1]} 46... Kd8 {[%clk
0:00:05]} 47. Ke4 {[%clk 0:00:11.7]} 47... Ke8 {[%clk 0:00:04.9]} 48. Rb7 {[%clk
0:00:11.5]} 48... Kd8 {[%clk 0:00:05.4]} 49. Kd5 {[%clk 0:00:12.1]} 49... Kc8
{[%clk 0:00:05.2]} 50. Kc6 {[%clk 0:00:12.2]} 50... Be5 {[%clk 0:00:04.9]} 51.
h3 {[%clk 0:00:13.1]} 51... Bf4 {[%clk 0:00:05.1]} 52. a4 {[%clk 0:00:14]} 52...
Bd2 {[%clk 0:00:05]} 53. Rxg7 {[%clk 0:00:13.8]} 53... h5 {[%clk 0:00:04.5]} 54.
Rf7 {[%clk 0:00:14.6]} 54... h4 {[%clk 0:00:05.4]} 55. Rh7 {[%clk 0:00:14.4]}
55... Bc3 {[%clk 0:00:05.4]} 56. Kb6 {[%clk 0:00:14.3]} 56... Bd4+ {[%clk
0:00:05]} 57. Kc6 {[%clk 0:00:14.7]} 57... Bc3 {[%clk 0:00:05.6]} 58. Rxh4
{[%clk 0:00:14.9]} 58... Kb8 {[%clk 0:00:04.7]} 59. Rh7 {[%clk 0:00:15.3]} 59...
Kc8 {[%clk 0:00:04.1]} 60. h4 {[%clk 0:00:15.9]} 60... Kd8 {[%clk 0:00:04.5]}
61. h5 {[%clk 0:00:16.5]} 61... Ke8 {[%clk 0:00:05.2]} 62. h6 {[%clk 0:00:16.8]}
62... Kf8 {[%clk 0:00:05.9]} 63. Rb7 {[%clk 0:00:16.8]} 63... Kg8 {[%clk
0:00:06]} 64. g4 {[%clk 0:00:15.6]} 64... Kf8 {[%clk 0:00:06.4]} 65. g5 {[%clk
0:00:15.7]} 65... Kg8 {[%clk 0:00:07.3]} 66. g6 {[%clk 0:00:16.2]} 66... Kf8
{[%clk 0:00:07.4]} 67. f4 {[%clk 0:00:16.3]} 67... Bd2 {[%clk 0:00:07.1]} 68. f5
{[%clk 0:00:16]} 68... Bxh6 {[%clk 0:00:07.5]} 69. f6 {[%clk 0:00:16.6]} 69...
Kg8 {[%clk 0:00:05.9]} 70. Rb8+ {[%clk 0:00:16.1]} 70... Bf8 {[%clk 0:00:06.6]}
71. Rxf8+ {[%clk 0:00:15.7]} 71... Kxf8 {[%clk 0:00:06]} 72. Kd6 {[%clk
0:00:16.3]} 72... Ke8 {[%clk 0:00:05.1]} 73. a5 {[%clk 0:00:17.2]} 73... Kd8
{[%clk 0:00:05.7]} 74. a6 {[%clk 0:00:17.8]} 74... Kc8 {[%clk 0:00:06.4]} 75.
Kc6 {[%clk 0:00:18.1]} 75... Kb8 {[%clk 0:00:06.9]} 76. Kb6 {[%clk 0:00:17.5]}
76... Kc8 {[%clk 0:00:06.8]} 77. Kc6 {[%clk 0:00:17.4]} 77... Kb8 {[%clk
0:00:07.1]} 78. g7 {[%clk 0:00:18.1]} 78... Ka7 {[%clk 0:00:07.4]} 79. g8=Q
{[%clk 0:00:17.5]} 79... Kxa6 {[%clk 0:00:07.5]} 80. Qa8# {[%clk 0:00:17]} 1-0

[Event "Late-Titled-Tuesday-Blitz-November-28-2023"]
[Site "Chess.com"]
[Date "2023.11.28"]
[Round "4"]
[White "K_A_S_T_O_R"]
[Black "LiemLe"]
[Result "0-1"]
[WhiteElo "2894"]
[BlackElo "3132"]
[TimeControl "180+1"]
[EndTime "14:38:40 PST"]
[Termination "LiemLe won by resignation"]

1. e4 {[%clk 0:03:00.9]} 1... c5 {[%clk 0:03:00]} 2. Nf3 {[%clk 0:03:00.3]} 2...
Nc6 {[%clk 0:03:00.2]} 3. d4 {[%clk 0:03:00.3]} 3... cxd4 {[%clk 0:03:01.1]} 4.
Nxd4 {[%clk 0:03:00.8]} 4... e5 {[%clk 0:03:01.7]} 5. Nb3 {[%clk 0:02:59.6]}
5... Nf6 {[%clk 0:03:01]} 6. Bg5 {[%clk 0:02:59.6]} 6... Bb4+ {[%clk 0:02:57.6]}
7. c3 {[%clk 0:02:59.3]} 7... Be7 {[%clk 0:02:57.7]} 8. Bxf6 {[%clk 0:02:59.1]}
8... Bxf6 {[%clk 0:02:58.6]} 9. Na3 {[%clk 0:02:59.5]} 9... d6 {[%clk
0:02:51.9]} 10. Nc4 {[%clk 0:02:58.9]} 10... Be7 {[%clk 0:02:46.5]} 11. Ne3
{[%clk 0:02:56.3]} 11... O-O {[%clk 0:02:39]} 12. Bc4 {[%clk 0:02:56]} 12... Bg5
{[%clk 0:02:33.9]} 13. Nd5 {[%clk 0:02:52.5]} 13... Kh8 {[%clk 0:02:25.7]} 14.
O-O {[%clk 0:02:27.7]} 14... f5 {[%clk 0:02:23.7]} 15. exf5 {[%clk 0:02:24.8]}
15... Bxf5 {[%clk 0:02:24.6]} 16. Qe2 {[%clk 0:02:23.9]} 16... Qd7 {[%clk
0:01:59.2]} 17. Bd3 {[%clk 0:02:18]} 17... Be6 {[%clk 0:01:37.8]} 18. Be4 {[%clk
0:02:17.7]} 18... Qf7 {[%clk 0:01:27.7]} 19. Rad1 {[%clk 0:02:14.7]} 19... Rad8
{[%clk 0:01:27.3]} 20. f3 {[%clk 0:02:07.1]} 20... Ne7 {[%clk 0:01:17.3]} 21.
Qd3 {[%clk 0:01:58.7]} 21... Nf5 {[%clk 0:01:11.3]} 22. Rfe1 {[%clk 0:01:45.7]}
22... Bh6 {[%clk 0:00:32.5]} 23. Nd2 {[%clk 0:01:41.5]} 23... Qh5 {[%clk
0:00:31.8]} 24. Nf1 {[%clk 0:01:39.9]} 24... Qh4 {[%clk 0:00:31.1]} 25. a4
{[%clk 0:01:22]} 25... g6 {[%clk 0:00:16.4]} 26. Qe2 {[%clk 0:01:20]} 26... Rd7
{[%clk 0:00:16.3]} 27. Qf2 {[%clk 0:01:18]} 27... Qxf2+ {[%clk 0:00:14.6]} 28.
Kxf2 {[%clk 0:01:17.5]} 28... Bg5 {[%clk 0:00:14.5]} 29. Kg1 {[%clk 0:01:08]}
29... Bd8 {[%clk 0:00:13.7]} 30. g3 {[%clk 0:01:00.7]} 30... Kg7 {[%clk
0:00:13.5]} 31. Kg2 {[%clk 0:01:00.8]} 31... Nh6 {[%clk 0:00:13.5]} 32. Nfe3
{[%clk 0:01:00]} 32... Nf7 {[%clk 0:00:12.9]} 33. h4 {[%clk 0:00:59.1]} 33...
Nh6 {[%clk 0:00:13.1]} 34. Nc4 {[%clk 0:00:52.6]} 34... Nf5 {[%clk 0:00:13.4]}
35. Nde3 {[%clk 0:00:51.6]} 35... Nxe3+ {[%clk 0:00:11.6]} 36. Nxe3 {[%clk
0:00:51.2]} 36... Bb6 {[%clk 0:00:11.7]} 37. Nd5 {[%clk 0:00:51.3]} 37... Rc8
{[%clk 0:00:10.8]} 38. Rd3 {[%clk 0:00:46.5]} 38... Bd8 {[%clk 0:00:10]} 39.
Red1 {[%clk 0:00:46.7]} 39... Kf7 {[%clk 0:00:10.1]} 40. Ne3 {[%clk 0:00:44.9]}
40... Ke7 {[%clk 0:00:09.4]} 41. Bd5 {[%clk 0:00:44.2]} 41... Bb6 {[%clk
0:00:09.3]} 42. Bxe6 {[%clk 0:00:44.5]} 42... Kxe6 {[%clk 0:00:10.2]} 43. Nd5
{[%clk 0:00:44.7]} 43... h5 {[%clk 0:00:09.5]} 44. b3 {[%clk 0:00:43.7]} 44...
Bd8 {[%clk 0:00:08.8]} 45. Re1 {[%clk 0:00:41.5]} 45... a6 {[%clk 0:00:08.1]}
46. c4 {[%clk 0:00:41.3]} 46... Kf7 {[%clk 0:00:06.3]} 47. Red1 {[%clk 0:00:39]}
47... Ba5 {[%clk 0:00:05.9]} 48. Ne3 {[%clk 0:00:38.5]} 48... Ke6 {[%clk
0:00:06.3]} 49. f4 {[%clk 0:00:33.6]} 49... exf4 {[%clk 0:00:05.9]} 50. gxf4
{[%clk 0:00:33.7]} 50... Bb4 {[%clk 0:00:06.1]} 51. Nd5 {[%clk 0:00:33.7]} 51...
Bc5 {[%clk 0:00:06.5]} 52. Re1+ {[%clk 0:00:33.6]} 52... Kf7 {[%clk 0:00:07]}
53. Kf3 {[%clk 0:00:32.8]} 53... Rdd8 {[%clk 0:00:06.1]} 54. Re7+ {[%clk
0:00:31.9]} 54... Kf8 {[%clk 0:00:06.6]} 55. Rd2 {[%clk 0:00:29.9]} 55... b5
{[%clk 0:00:03.4]} 56. cxb5 {[%clk 0:00:27.3]} 56... axb5 {[%clk 0:00:04.3]} 57.
axb5 {[%clk 0:00:27.8]} 57... Rb8 {[%clk 0:00:04.6]} 58. Re6 {[%clk 0:00:26.3]}
58... Rxb5 {[%clk 0:00:04.5]} 59. b4 {[%clk 0:00:20.4]} 59... Bxb4 {[%clk
0:00:04.6]} 60. Rd3 {[%clk 0:00:19.3]} 60... Bc5 {[%clk 0:00:04.3]} 61. Rxg6
{[%clk 0:00:19.4]} 61... Rb1 {[%clk 0:00:02.8]} 62. Rh6 {[%clk 0:00:18.2]} 62...
Kg7 {[%clk 0:00:02.9]} 63. Rxh5 {[%clk 0:00:18.1]} 63... Re8 {[%clk 0:00:03.5]}
64. Rg5+ {[%clk 0:00:18.1]} 64... Kh6 {[%clk 0:00:03.9]} 65. Nf6 {[%clk
0:00:17.7]} 65... Rf8 {[%clk 0:00:02.3]} 66. Ng4+ {[%clk 0:00:16.9]} 66... Kh7
{[%clk 0:00:02.8]} 67. Rh5+ {[%clk 0:00:16.8]} 67... Kg6 {[%clk 0:00:02.8]} 68.
Rg5+ {[%clk 0:00:17.4]} 68... Kh7 {[%clk 0:00:03.5]} 69. Kg3 {[%clk 0:00:17.6]}
69... Rg1+ {[%clk 0:00:03]} 70. Kh2 {[%clk 0:00:18]} 70... Rxf4 {[%clk
0:00:02.5]} 71. Rb3 {[%clk 0:00:16]} 71... Rfxg4 {[%clk 0:00:02.2]} 72. Rxg4
{[%clk 0:00:15.8]} 72... Rxg4 {[%clk 0:00:03.1]} 73. Kh3 {[%clk 0:00:16.7]}
73... Rg7 {[%clk 0:00:02.8]} 74. Rb7 {[%clk 0:00:17.6]} 74... Rxb7 {[%clk
0:00:02.2]} 0-1